[Event "FIDE WAC U1700 2021"]
[Site "Rhodes"]
[Date "2021.10.21"]
[Round "5.1"]
[White "Sodbilegt, Naranbold"]
[Black "Ainakul, Mukhtar"]
[Result "1/2-1/2"]
[ECO "B12"]
[WhiteElo "1638"]
[BlackElo "1674"]
[Annotator "NA"]
[PlyCount "62"]
[EventDate "2021.10.17"]
[EventType "swiss"]
[EventCountry "GRE"]
[SourceTitle "playchess.com"]
[Source "ChessBase"]
[SourceQuality "1"]
[TimeControl "5400+30"]

1. e4 {[%emt 0:00:01]} c6 {[%emt 0:02:45]} 2. d4 {[%emt 0:00:38]} d5 {[%emt 0:00:22]} 3. e5 {[%emt 0:00:17]} Bf5 {[%emt 0:00:45]} 4. Nf3 {[%emt 0:00:19]} e6 {[%emt 0:00:12]} 5. Be2 {[%emt 0:01:17]} Ne7 {[%emt 0:00:43]} 6. O-O {[%emt 0:04:25]} c5 {[%emt 0:00:31]} 7. c3 {[%emt 0:01:09]} Nec6 {[%emt 0:01:19]} 8. Be3 {[%emt 0:03:44]} Nd7 {[%emt 0:05:38]} 9. Qd2 {[%emt 0:10:29]} Be7 {[%emt 0:02:42]} 10. Ne1 {[%emt 0:03:36]} O-O {[%emt 0:01:43]} 11. f4 {[%emt 0:01:36]} Rc8 {[%emt 0:04:06]} 12. Nf3 {[%emt 0:01:55]} cxd4 {[%emt 0:06:54]} 13. Nxd4 {[%emt 0:01:47]} Nxd4 {[%emt 0:02:43]} 14. Bxd4 {[%emt 0:00:50]} Nc5 {[%emt 0:00:46]} 15. Bf3 {[%emt 0:03:53]} Qd7 {[%emt 0:01:24]} 16. Kh1 {[%emt 0:04:25]} Qa4 {[%emt 0:03:28]} 17. Bd1 {[%emt 0:06:43]} Qa6 {[%emt 0:05:32]} 18. Be2 {[%emt 0:01:12]} b5 {[%emt 0:05:15]} 19. Bxc5 {[%emt 0:01:59]} Bxc5 {[%emt 0:03:53]} 20. a4 {[%emt 0:03:05]} f6 {[%emt 0:10:19]} 21. b4 {[%emt 0:05:57]} Be7 {[%emt 0:01:43]} 22. Bxb5 {[%emt 0:00:24]} Qb6 {[%emt 0:02:02]} 23. Na3 {[%emt 0:05:24]} fxe5 {[%emt 0:01:26]} 24. fxe5 {[%emt 0:00:27]} Qc7 {[%emt 0:02:55]} 25. Bd3 {[%emt 0:07:46]} Qxe5 {[%emt 0:04:55]} 26. Bxf5 {[%emt 0:00:36]} Rxf5 {[%emt 0:00:13]} 27. Rxf5 {[%emt 0:07:26]} Qxf5 {[%emt 0:00:49]} 28. Nb5 {[%emt 0:02:15]} Rf8 {[%emt 0:13:00]} 29. Qe2 {[%emt 0:03:00]} Bf6 {[%emt 0:04:24]} 30. Rf1 {[%emt 0:01:24]} Qe4 {[%emt 0:01:34]} 31. Qxe4 {[%emt 0:01:54]} dxe4 {[%emt 0:00:02]} 1/2-1/2

[Event "FIDE WAC U1700 2021"]
[Site "Rhodes"]
[Date "2021.10.21"]
[Round "5.2"]
[White "Bozkurt, Serkan"]
[Black "Abubakirov, Khumid"]
[Result "1-0"]
[ECO "A01"]
[WhiteElo "1668"]
[BlackElo "1615"]
[Annotator "NA"]
[PlyCount "30"]
[EventDate "2021.10.17"]
[EventType "swiss"]
[EventCountry "GRE"]
[SourceTitle "playchess.com"]
[Source "ChessBase"]
[SourceQuality "1"]
[TimeControl "5400+30"]

1. b3 {[%emt 0:00:01]} e5 {[%emt 0:05:12]} 2. Bb2 {[%emt 0:00:02]} Nc6 {[%emt 0:00:06]} 3. e3 {[%emt 0:00:12]} d5 {[%emt 0:00:53]} 4. Bb5 {[%emt 0:00:06]} Bd6 {[%emt 0:02:00]} 5. Nf3 {[%emt 0:01:19]} Qe7 {[%emt 0:04:00]} 6. c4 {[%emt 0:04:09]} Nf6 {[%emt 0:00:39]} 7. c5 {[%emt 0:00:51]} Bxc5 {[%emt 0:03:00]} 8. Nxe5 {[%emt 0:00:33]} Bd7 {[%emt 0:01:52]} 9. Nxd7 {[%emt 0:00:13]} Qxd7 {[%emt 0:01:15]} 10. Qc2 {[%emt 0:04:04]} Be7 {[%emt 0:01:06]} 11. O-O {[%emt 0:03:32]} O-O {[%emt 0:00:08]} 12. Bxc6 {[%emt 0:03:37]} bxc6 {[%emt 0:00:37]} 13. Rc1 {[%emt 0:00:28]} c5 {[%emt 0:01:42]} 14. Ba3 {[%emt 0:01:52]} Ne4 {[%emt 0:11:15]} 15. d3 {[%emt 0:03:18]} Nd6 {[%emt 0:02:06]} 1-0

[Event "FIDE WAC U1700 2021"]
[Site "Rhodes"]
[Date "2021.10.21"]
[Round "5.3"]
[White "Sulaimanov, Tilekmatali"]
[Black "Ruzic, Milos"]
[Result "1-0"]
[ECO "E65"]
[WhiteElo "1657"]
[BlackElo "1666"]
[Annotator "NA"]
[PlyCount "77"]
[EventDate "2021.10.17"]
[EventType "swiss"]
[EventCountry "GRE"]
[SourceTitle "playchess.com"]
[Source "ChessBase"]
[SourceQuality "1"]
[TimeControl "5400+30"]

1. d4 {[%emt 0:02:48]} d6 {[%emt 0:01:04]} 2. Nf3 {[%emt 0:00:55]} Nf6 {[%emt 0:00:25]} 3. g3 {[%emt 0:00:59]} g6 {[%emt 0:00:54]} 4. Bg2 {[%emt 0:00:07]} Bg7 {[%emt 0:00:38]} 5. O-O {[%emt 0:00:09]} Nbd7 {[%emt 0:08:03]} 6. b3 {[%emt 0:07:09]} c5 {[%emt 0:02:33]} 7. Bb2 {[%emt 0:00:17]} cxd4 {[%emt 0:02:36]} 8. Nxd4 {[%emt 0:00:56]} O-O {[%emt 0:00:36]} 9. c4 {[%emt 0:01:22]} a6 {[%emt 0:02:08]} 10. Nc3 {[%emt 0:02:21]} Rb8 {[%emt 0:10:14]} 11. e4 {[%emt 0:04:26]} Nc5 {[%emt 0:02:37]} 12. b4 {[%emt 0:17:27]} Ne6 {[%emt 0:09:46]} 13. Nd5 {[%emt 0:05:49]} Nxd5 {[%emt 0:10:49]} 14. exd5 {[%emt 0:09:25]} Nxd4 {[%emt 0:05:43]} 15. Bxd4 {[%emt 0:00:08]} e5 {[%emt 0:00:30]} 16. dxe6 {[%emt 0:04:42]} Bxe6 {[%emt 0:02:38]} 17. Bxg7 {[%emt 0:04:26]} Kxg7 {[%emt 0:00:07]} 18. Bd5 {[%emt 0:06:11]} b5 {[%emt 0:03:55]} 19. Bxe6 {[%emt 0:05:14]} fxe6 {[%emt 0:00:14]} 20. Qd4+ {[%emt 0:06:13]} e5 {[%emt 0:00:48]} 21. Qa7+ {[%emt 0:00:42]} Rf7 {[%emt 0:00:39]} 22. Qxa6 {[%emt 0:00:36]} bxc4 {[%emt 0:00:06]} 23. Qxc4 {[%emt 0:00:27]} d5 {[%emt 0:01:18]} 24. Qc3 {[%emt 0:03:23]} d4 {[%emt 0:04:07]} 25. Qc5 {[%emt 0:00:43]} Rf5 {[%emt 0:03:25]} 26. Rad1 {[%emt 0:01:25]} Rc8 {[%emt 0:00:24]} 27. Qa7+ {[%emt 0:00:30]} Rc7 {[%emt 0:01:45]} 28. Qa3 {[%emt 0:02:17]} Qf6 {[%emt 0:04:03]} 29. Qb2 {[%emt 0:02:03]} Rf3 {[%emt 0:01:50]} 30. a4 {[%emt 0:03:18]} Rcc3 {[%emt 0:02:03]} 31. Rc1 {[%emt 0:01:24]} e4 {[%emt 0:06:19]} 32. Qe2 {[%emt 0:03:49]} Qe5 {[%emt 0:09:47]} 33. Rce1 {[%emt 0:01:26]} Qd6 {[%emt 0:01:18]} 34. Qxe4 {[%emt 0:01:01]} Qxb4 {[%emt 0:00:16]} 35. Rd1 {[%emt 0:01:21]} Qxa4 {[%emt 0:01:17]} 36. Rxd4 {[%emt 0:00:27]} Qa2 {[%emt 0:00:21]} 37. Rd7+ {[%emt 0:00:35]} Kg8 {[%emt 0:01:54]} 38. Qd4 {[%emt 0:00:33]} Kf8 {[%emt 0:01:58]} 39. Rd6 {[%emt 0:00:24]} 1-0

[Event "FIDE WAC U1700 2021"]
[Site "Rhodes"]
[Date "2021.10.21"]
[Round "5.4"]
[White "Abdulrahim, Salem"]
[Black "Alhejab, Meshal"]
[Result "1-0"]
[ECO "B07"]
[WhiteElo "1629"]
[BlackElo "1681"]
[Annotator "NA"]
[PlyCount "87"]
[EventDate "2021.10.17"]
[EventType "swiss"]
[EventCountry "GRE"]
[SourceTitle "playchess.com"]
[Source "ChessBase"]
[SourceQuality "1"]
[TimeControl "5400+30"]

1. e4 {[%emt 0:00:03]} d6 {[%emt 0:00:08]} 2. d4 {[%emt 0:00:06]} Nf6 {[%emt 0:00:14]} 3. Nc3 {[%emt 0:00:12]} Nbd7 {[%emt 0:00:10]} 4. f4 {[%emt 0:00:32]} e5 {[%emt 0:00:04]} 5. Nf3 {[%emt 0:00:19]} exd4 {[%emt 0:00:06]} 6. Qxd4 {[%emt 0:00:21]} c6 {[%emt 0:00:06]} 7. Be3 {[%emt 0:00:47]} d5 {[%emt 0:00:07]} 8. exd5 {[%emt 0:00:20]} Bc5 {[%emt 0:00:07]} 9. Qd3 {[%emt 0:00:27]} Qe7 {[%emt 0:00:38]} 10. Nd4 {[%emt 0:00:58]} Ng4 {[%emt 0:03:46]} 11. Nf5 {[%emt 0:00:46]} Qf6 {[%emt 0:01:18]} 12. dxc6 {[%emt 0:00:53]} bxc6 {[%emt 0:03:20]} 13. Bxc5 {[%emt 0:00:45]} Nxc5 {[%emt 0:00:23]} 14. Nd6+ {[%emt 0:00:11]} Kd7 {[%emt 0:25:47]} 15. Qf5+ {[%emt 0:11:22]} Qxf5 {[%emt 0:04:36]} 16. Nxf5 {[%emt 0:00:47]} Kc7 {[%emt 0:03:45]} 17. Nd4 {[%emt 0:28:26]} Re8+ {[%emt 0:06:27]} 18. Be2 {[%emt 0:05:30]} Ne3 {[%emt 0:13:21]} 19. Kf2 {[%emt 0:04:34]} Ne4+ {[%emt 0:01:38]} 20. Nxe4 {[%emt 0:04:22]} Rxe4 {[%emt 0:00:47]} 21. c3 {[%emt 0:21:41]} Nf5 {[%emt 0:10:22]} 22. Bf3 {[%emt 0:01:51]} Rxf4 {[%emt 0:00:59]} 23. g3 {[%emt 0:00:15]} Nxd4 {[%emt 0:06:12]} 24. gxf4 {[%emt 0:00:12]} Nxf3 {[%emt 0:00:21]} 25. Kxf3 {[%emt 0:00:03]} Rb8 {[%emt 0:00:37]} 26. b3 {[%emt 0:00:37]} h5 {[%emt 0:00:27]} 27. Rhe1 {[%emt 0:00:43]} Bg4+ {[%emt 0:04:58]} 28. Kg3 {[%emt 0:00:10]} Rd8 {[%emt 0:04:05]} 29. Re7+ {[%emt 0:01:49]} Kb6 {[%emt 0:00:07]} 30. Rxf7 {[%emt 0:05:26]} Rd3+ {[%emt 0:00:07]} 31. Kh4 {[%emt 0:00:06]} g6 {[%emt 0:01:22]} 32. Kg5 {[%emt 0:05:06]} Bf5 {[%emt 0:01:35]} 33. Rxf5 {[%emt 0:01:54]} gxf5 {[%emt 0:00:08]} 34. Kxh5 {[%emt 0:00:06]} Rh3+ {[%emt 0:01:30]} 35. Kg5 {[%emt 0:00:05]} Rxh2 {[%emt 0:00:05]} 36. Kxf5 {[%emt 0:00:04]} Kc7 {[%emt 0:00:10]} 37. Kf6 {[%emt 0:00:48]} Kd7 {[%emt 0:00:19]} 38. f5 {[%emt 0:00:24]} Ke8 {[%emt 0:00:36]} 39. Re1+ {[%emt 0:00:11]} Kf8 {[%emt 0:00:15]} 40. Re6 {[%emt 0:00:26]} c5 {[%emt 0:00:22]} 41. c4 {[%emt 0:01:21]} a5 {[%emt 0:01:20]} 42. Re5 {[%emt 0:02:27]} Rxa2 {[%emt 0:00:49]} 43. Rxc5 {[%emt 0:00:05]} Ke8 {[%emt 0:00:03]} 44. Ke6 {[%emt 0:00:15]} 1-0

[Event "FIDE WAC U1700 2021"]
[Site "Rhodes"]
[Date "2021.10.21"]
[Round "5.5"]
[White "Kanev, Evgeny"]
[Black "Michailov, Andrej"]
[Result "0-1"]
[ECO "A08"]
[WhiteElo "1593"]
[BlackElo "1656"]
[Annotator "NA"]
[PlyCount "130"]
[EventDate "2021.10.17"]
[EventType "swiss"]
[EventCountry "GRE"]
[SourceTitle "playchess.com"]
[Source "ChessBase"]
[SourceQuality "1"]
[TimeControl "5400+30"]

1. Nf3 {[%emt 0:00:03]} d5 {[%emt 0:00:06]} 2. g3 {[%emt 0:00:03]} Nf6 {[%emt 0:02:18]} 3. Bg2 {[%emt 0:00:05]} g6 {[%emt 0:00:28]} 4. d3 {[%emt 0:00:36]} Bg7 {[%emt 0:00:51]} 5. O-O {[%emt 0:00:04]} c5 {[%emt 0:07:07]} 6. Nc3 {[%emt 0:00:36]} Nc6 {[%emt 0:12:53]} 7. Nd2 {[%emt 0:00:05]} O-O {[%emt 0:01:47]} 8. e4 {[%emt 0:00:02]} e6 {[%emt 0:02:55]} 9. f4 {[%emt 0:00:10]} Rb8 {[%emt 0:08:45]} 10. g4 {[%emt 0:01:35]} dxe4 {[%emt 0:19:18]} 11. Ndxe4 {[%emt 0:00:01]} Nxe4 {[%emt 0:03:16]} 12. Nxe4 {[%emt 0:00:07]} b6 {[%emt 0:00:14]} 13. c3 {[%emt 0:01:27]} Ba6 {[%emt 0:01:21]} 14. Rf3 {[%emt 0:05:53]} Bb7 {[%emt 0:01:10]} 15. g5 {[%emt 0:03:22]} Ne7 {[%emt 0:01:02]} 16. Be3 {[%emt 0:05:33]} Nf5 {[%emt 0:01:55]} 17. Bf2 {[%emt 0:00:06]} Qe7 {[%emt 0:08:26]} 18. Rh3 {[%emt 0:00:37]} Rfd8 {[%emt 0:04:28]} 19. Qg4 {[%emt 0:00:42]} Rd7 {[%emt 0:01:55]} 20. Re1 {[%emt 0:03:21]} Rbd8 {[%emt 0:01:54]} 21. Bf1 {[%emt 0:00:22]} Ba6 {[%emt 0:00:39]} 22. c4 {[%emt 0:05:51]} Bxb2 {[%emt 0:02:24]} 23. Ng3 {[%emt 0:00:08]} Qf8 {[%emt 0:00:44]} 24. Re5 {[%emt 0:05:36]} Bxe5 {[%emt 0:03:19]} 25. fxe5 {[%emt 0:00:03]} Nxg3 {[%emt 0:00:11]} 26. Qxg3 {[%emt 0:01:27]} Bb7 {[%emt 0:00:33]} 27. Be2 {[%emt 0:05:42]} Bc6 {[%emt 0:01:06]} 28. a3 {[%emt 0:06:02]} Ba4 {[%emt 0:00:08]} 29. Qh4 {[%emt 0:02:11]} Qg7 {[%emt 0:00:16]} 30. Qe4 {[%emt 0:00:11]} Rc7 {[%emt 0:02:15]} 31. Kf1 {[%emt 0:03:06]} Bc6 {[%emt 0:00:09]} 32. Qf4 {[%emt 0:00:51]} Rcd7 {[%emt 0:00:51]} 33. Kg1 {[%emt 0:02:17]} Rd4 {[%emt 0:01:49]} 34. Bxd4 {[%emt 0:00:03]} Rxd4 {[%emt 0:00:04]} 35. Qe3 {[%emt 0:01:52]} b5 {[%emt 0:02:05]} 36. cxb5 {[%emt 0:04:10]} Bxb5 {[%emt 0:00:09]} 37. Rf3 {[%emt 0:00:15]} Qf8 {[%emt 0:00:33]} 38. Rf4 {[%emt 0:02:52]} Qd8 {[%emt 0:01:24]} 39. Rxd4 {[%emt 0:00:25]} Qxd4 {[%emt 0:02:03]} 40. Qxd4 {[%emt 0:00:02]} cxd4 {[%emt 0:00:08]} 41. Kf2 {[%emt 0:00:10]} Kf8 {[%emt 0:00:37]} 42. Ke1 {[%emt 0:07:03]} Ke7 {[%emt 0:00:35]} 43. Kd2 {[%emt 0:02:49]} Bc6 {[%emt 0:00:03]} 44. Kc2 {[%emt 0:01:08]} Ba4+ {[%emt 0:00:39]} 45. Kd2 {[%emt 0:04:20]} Kd7 {[%emt 0:00:06]} 46. Bf3 {[%emt 0:00:26]} Bc6 {[%emt 0:00:01]} 47. Bg4 {[%emt 0:02:17]} Kc7 {[%emt 0:00:10]} 48. Be2 {[%emt 0:00:38]} Kb6 {[%emt 0:00:10]} 49. Bg4 {[%emt 0:00:14]} Kc5 {[%emt 0:00:02]} 50. Bd1 {[%emt 0:00:34]} Kb5 {[%emt 0:03:09]} 51. Bc2 {[%emt 0:00:17]} Kc5 {[%emt 0:00:47]} 52. Bd1 {[%emt 0:02:35]} Bd5 {[%emt 0:00:03]} 53. Ba4 {[%emt 0:02:23]} Ba2 {[%emt 0:00:28]} 54. Be8 {[%emt 0:00:51]} Kd5 {[%emt 0:00:09]} 55. Bxf7 {[%emt 0:00:58]} Kxe5 {[%emt 0:00:08]} 56. Bg8 {[%emt 0:02:03]} Kf5 {[%emt 0:00:27]} 57. Bxh7 {[%emt 0:00:43]} Kxg5 {[%emt 0:00:07]} 58. Bg8 {[%emt 0:01:24]} Kh4 {[%emt 0:00:55]} 59. Ke2 {[%emt 0:00:46]} Kh3 {[%emt 0:00:13]} 60. Kf3 {[%emt 0:00:36]} g5 {[%emt 0:02:31]} 61. Ke4 {[%emt 0:01:58]} Kxh2 {[%emt 0:00:35]} 62. Kxd4 {[%emt 0:00:06]} g4 {[%emt 0:00:08]} 63. Bh7 {[%emt 0:00:12]} Bd5 {[%emt 0:01:20]} 64. Be4 {[%emt 0:00:13]} Bxe4 {[%emt 0:00:15]} 65. dxe4 {[%emt 0:00:04]} g3 {[%emt 0:00:05]} 0-1

[Event "FIDE WAC U1700 2021"]
[Site "Rhodes"]
[Date "2021.10.22"]
[Round "6.1"]
[White "Ainakul, Mukhtar"]
[Black "Sulaimanov, Tilekmatali"]
[Result "1-0"]
[ECO "B23"]
[WhiteElo "1674"]
[BlackElo "1657"]
[Annotator "NA"]
[PlyCount "49"]
[EventDate "2021.10.17"]
[EventType "swiss"]
[EventCountry "GRE"]
[SourceTitle "playchess.com"]
[Source "ChessBase"]
[SourceQuality "1"]
[TimeControl "5400+30"]

1. e4 {[%emt 0:00:43]} c5 {[%emt 0:00:18]} 2. Nc3 {[%emt 0:01:11]} Nc6 {[%emt 0:01:42]} 3. f4 {[%emt 0:05:10]} g6 {[%emt 0:10:04]} 4. Nf3 {[%emt 0:00:28]} Bg7 {[%emt 0:00:23]} 5. Bb5 {[%emt 0:00:22]} Nd4 {[%emt 0:03:45]} 6. Nxd4 {[%emt 0:00:46]} Bxd4 {[%emt 0:01:59]} 7. e5 {[%emt 0:11:30]} a6 {[%emt 0:10:37]} 8. Be2 {[%emt 0:05:53]} d5 {[%emt 0:18:38]} 9. Bf3 {[%emt 0:01:39]} Bxc3 {[%emt 0:08:55]} 10. dxc3 {[%emt 0:00:49]} e6 {[%emt 0:02:25]} 11. Be3 {[%emt 0:00:01]} Qc7 {[%emt 0:01:57]} 12. Qd2 {[%emt 0:04:03]} c4 {[%emt 0:04:39]} 13. a4 {[%emt 0:02:53]} Ne7 {[%emt 0:07:38]} 14. a5 {[%emt 0:08:27]} Bd7 {[%emt 0:02:30]} 15. g4 {[%emt 0:08:54]} h5 {[%emt 0:05:08]} 16. gxh5 {[%emt 0:09:27]} gxh5 {[%emt 0:00:46]} 17. Rg1 {[%emt 0:00:30]} Bc6 {[%emt 0:02:35]} 18. Bb6 {[%emt 0:02:27]} Qd7 {[%emt 0:00:32]} 19. O-O-O {[%emt 0:01:06]} d4 {[%emt 0:03:33]} 20. Bxc6 {[%emt 0:01:53]} Qxc6 {[%emt 0:02:14]} 21. Qxd4 {[%emt 0:00:09]} Nd5 {[%emt 0:01:10]} 22. f5 {[%emt 0:02:31]} Nxb6 {[%emt 0:01:01]} 23. axb6 {[%emt 0:01:23]} exf5 {[%emt 0:01:44]} 24. e6 {[%emt 0:01:23]} Rf8 {[%emt 0:00:30]} 25. e7 {[%emt 0:03:47]} 1-0

[Event "FIDE WAC U1700 2021"]
[Site "Rhodes"]
[Date "2021.10.22"]
[Round "6.2"]
[White "Sodbilegt, Naranbold"]
[Black "Bozkurt, Serkan"]
[Result "1-0"]
[ECO "B23"]
[WhiteElo "1638"]
[BlackElo "1668"]
[Annotator "NA"]
[PlyCount "53"]
[EventDate "2021.10.17"]
[EventType "swiss"]
[EventCountry "GRE"]
[SourceTitle "playchess.com"]
[Source "ChessBase"]
[SourceQuality "1"]
[TimeControl "5400+30"]

1. e4 {[%emt 0:00:06]} c5 {[%emt 0:00:04]} 2. Nc3 {[%emt 0:00:08]} Nc6 {[%emt 0:00:38]} 3. Bb5 {[%emt 0:00:08]} Qb6 {[%emt 0:09:33]} 4. Nd5 {[%emt 0:02:06]} Qd8 {[%emt 0:00:50]} 5. Bxc6 {[%emt 0:00:31]} bxc6 {[%emt 0:00:44]} 6. Nc3 {[%emt 0:01:14]} g6 {[%emt 0:01:27]} 7. d4 {[%emt 0:02:40]} Bg7 {[%emt 0:06:01]} 8. dxc5 {[%emt 0:10:30]} Qa5 {[%emt 0:00:38]} 9. Nge2 {[%emt 0:00:45]} Ba6 {[%emt 0:03:29]} 10. Be3 {[%emt 0:08:33]} Bxe2 {[%emt 0:03:50]} 11. Kxe2 {[%emt 0:00:26]} Qb4 {[%emt 0:04:57]} 12. Qd3 {[%emt 0:07:30]} Qxb2 {[%emt 0:07:35]} 13. Rhd1 {[%emt 0:02:12]} Rd8 {[%emt 0:07:46]} 14. Rab1 {[%emt 0:00:47]} Bxc3 {[%emt 0:06:03]} 15. Rxb2 {[%emt 0:00:10]} Bxb2 {[%emt 0:00:01]} 16. Bd4 {[%emt 0:01:21]} Bxd4 {[%emt 0:00:49]} 17. Qxd4 {[%emt 0:00:03]} f6 {[%emt 0:01:19]} 18. Rb1 {[%emt 0:01:20]} h5 {[%emt 0:10:31]} 19. Rb7 {[%emt 0:00:34]} a5 {[%emt 0:00:11]} 20. Ra7 {[%emt 0:00:25]} h4 {[%emt 0:00:14]} 21. h3 {[%emt 0:00:16]} Rh5 {[%emt 0:01:57]} 22. Rxa5 {[%emt 0:01:41]} Rg5 {[%emt 0:02:56]} 23. Kf1 {[%emt 0:01:48]} Nh6 {[%emt 0:01:34]} 24. Ra7 {[%emt 0:03:03]} Nf7 {[%emt 0:00:55]} 25. a4 {[%emt 0:02:00]} d5 {[%emt 0:11:10]} 26. f4 {[%emt 0:00:56]} e5 {[%emt 0:03:23]} 27. Qb2 {[%emt 0:03:01]} 1-0

[Event "FIDE WAC U1700 2021"]
[Site "Rhodes"]
[Date "2021.10.22"]
[Round "6.3"]
[White "Michailov, Andrej"]
[Black "Alrashidi, Yousef"]
[Result "1-0"]
[ECO "C36"]
[WhiteElo "1656"]
[BlackElo "1610"]
[Annotator "NA"]
[PlyCount "87"]
[EventDate "2021.10.17"]
[EventType "swiss"]
[EventCountry "GRE"]
[SourceTitle "playchess.com"]
[Source "ChessBase"]
[SourceQuality "1"]
[TimeControl "5400+30"]

1. e4 {[%emt 0:00:01]} e5 {[%emt 0:03:32]} 2. f4 {[%emt 0:00:09]} d5 {[%emt 0:00:46]} 3. exd5 {[%emt 0:00:33]} exf4 {[%emt 0:00:33]} 4. Nf3 {[%emt 0:00:31]} g5 {[%emt 0:03:42]} 5. Bb5+ {[%emt 0:06:52]} Bd7 {[%emt 0:02:10]} 6. Qe2+ {[%emt 0:02:51]} Qe7 {[%emt 0:02:24]} 7. Bxd7+ {[%emt 0:02:51]} Nxd7 {[%emt 0:01:22]} 8. Nxg5 {[%emt 0:00:05]} Qxe2+ {[%emt 0:03:17]} 9. Kxe2 {[%emt 0:00:03]} Be7 {[%emt 0:00:44]} 10. Nf3 {[%emt 0:01:31]} Ngf6 {[%emt 0:00:54]} 11. c4 {[%emt 0:06:08]} O-O-O {[%emt 0:01:51]} 12. Nc3 {[%emt 0:02:30]} Rhg8 {[%emt 0:00:42]} 13. Rg1 {[%emt 0:07:47]} Rde8 {[%emt 0:01:36]} 14. d4 {[%emt 0:01:17]} Nb6 {[%emt 0:05:44]} 15. Kd3 {[%emt 0:01:22]} Nh5 {[%emt 0:04:21]} 16. a3 {[%emt 0:07:16]} f6 {[%emt 0:03:34]} 17. Ne2 {[%emt 0:04:14]} Bf8 {[%emt 0:05:48]} 18. Nxf4 {[%emt 0:00:55]} Nxf4+ {[%emt 0:02:12]} 19. Bxf4 {[%emt 0:00:05]} Rg4 {[%emt 0:00:54]} 20. g3 {[%emt 0:02:54]} c5 {[%emt 0:08:20]} 21. dxc6 {[%emt 0:03:20]} bxc6 {[%emt 0:00:36]} 22. Rae1 {[%emt 0:00:36]} Rd8 {[%emt 0:01:26]} 23. Re6 {[%emt 0:01:42]} c5 {[%emt 0:02:16]} 24. d5 {[%emt 0:01:15]} Bg7 {[%emt 0:01:46]} 25. Rc6+ {[%emt 0:05:29]} Kb7 {[%emt 0:01:04]} 26. Rc7+ {[%emt 0:05:16]} Ka6 {[%emt 0:01:50]} 27. h3 {[%emt 0:03:12]} Rxf4 {[%emt 0:02:19]} 28. gxf4 {[%emt 0:00:02]} Bh6 {[%emt 0:00:02]} 29. Rxh7 {[%emt 0:00:45]} Bxf4 {[%emt 0:00:06]} 30. Rgg7 {[%emt 0:00:15]} Bb8 {[%emt 0:00:57]} 31. Rf7 {[%emt 0:02:57]} Nc8 {[%emt 0:02:42]} 32. Rxf6+ {[%emt 0:00:39]} Ka5 {[%emt 0:00:37]} 33. Kc3 {[%emt 0:04:32]} Nb6 {[%emt 0:02:59]} 34. b4+ {[%emt 0:01:10]} cxb4+ {[%emt 0:01:00]} 35. axb4+ {[%emt 0:00:12]} Ka4 {[%emt 0:00:14]} 36. Re7 {[%emt 0:05:24]} Ka3 {[%emt 0:03:32]} 37. Re1 {[%emt 0:00:59]} Ka2 {[%emt 0:01:07]} 38. Nd4 {[%emt 0:01:18]} Na4+ {[%emt 0:00:54]} 39. Kd3 {[%emt 0:01:39]} Nb2+ {[%emt 0:00:38]} 40. Kc2 {[%emt 0:00:36]} Nxc4 {[%emt 0:00:11]} 41. Ra6+ {[%emt 0:00:25]} Na3+ {[%emt 0:00:11]} 42. Kd3 {[%emt 0:05:31]} Kb2 {[%emt 0:02:36]} 43. Re2+ {[%emt 0:00:14]} Kc1 {[%emt 0:01:06]} 44. Rf6 {[%emt 0:02:23]} 1-0

[Event "FIDE WAC U1700 2021"]
[Site "Rhodes"]
[Date "2021.10.22"]
[Round "6.4"]
[White "Fishchuk, Vladyslav"]
[Black "Abdivaliev, Daniial"]
[Result "0-1"]
[ECO "A30"]
[WhiteElo "1648"]
[BlackElo "1482"]
[Annotator "NA"]
[PlyCount "50"]
[EventDate "2021.10.17"]
[EventType "swiss"]
[EventCountry "GRE"]
[SourceTitle "playchess.com"]
[Source "ChessBase"]
[SourceQuality "1"]
[TimeControl "5400+30"]

1. c4 {[%emt 0:00:02]} b6 {[%emt 0:03:20]} 2. Nf3 {[%emt 0:02:21]} Bb7 {[%emt 0:00:05]} 3. g3 {[%emt 0:00:17]} c5 {[%emt 0:00:03]} 4. Bg2 {[%emt 0:00:07]} Nf6 {[%emt 0:00:34]} 5. O-O {[%emt 0:00:09]} e6 {[%emt 0:00:07]} 6. Nc3 {[%emt 0:00:11]} Be7 {[%emt 0:01:04]} 7. d4 {[%emt 0:00:35]} cxd4 {[%emt 0:01:30]} 8. Qxd4 {[%emt 0:00:21]} O-O {[%emt 0:01:04]} 9. Rd1 {[%emt 0:03:02]} Nc6 {[%emt 0:07:49]} 10. Qd3 {[%emt 0:00:57]} Nb4 {[%emt 0:02:08]} 11. Qd2 {[%emt 0:02:27]} Rc8 {[%emt 0:02:29]} 12. b3 {[%emt 0:01:06]} d5 {[%emt 0:01:04]} 13. a3 {[%emt 0:01:54]} Na6 {[%emt 0:00:05]} 14. cxd5 {[%emt 0:01:52]} Nxd5 {[%emt 0:01:05]} 15. Nb5 {[%emt 0:04:16]} Nc5 {[%emt 0:03:05]} 16. Nbd4 {[%emt 0:00:19]} Bf6 {[%emt 0:07:50]} 17. b4 {[%emt 0:02:27]} Ne4 {[%emt 0:01:44]} 18. Qd3 {[%emt 0:01:05]} Nec3 {[%emt 0:01:48]} 19. Rd2 {[%emt 0:02:42]} e5 {[%emt 0:00:04]} 20. e4 {[%emt 0:00:14]} Ne7 {[%emt 0:03:52]} 21. Bb2 {[%emt 0:01:42]} Bxe4 {[%emt 0:00:36]} 22. Qe3 {[%emt 0:00:08]} exd4 {[%emt 0:00:53]} 23. Nxd4 {[%emt 0:00:11]} Ned5 {[%emt 0:01:25]} 24. Qe1 {[%emt 0:00:07]} Bxg2 {[%emt 0:00:16]} 25. Kxg2 {[%emt 0:00:07]} Re8 {[%emt 0:00:15]} 0-1